[Event "Betsys MČR v online bleskovém šachu 2021"]
[Site "Chess.com"]
[Date "2021.04.17"]
[Round "2"]
[White "Nimrod64"]
[Black "machonza"]
[Result "0-1"]
[WhiteElo "2273"]
[BlackElo "1970"]
[TimeControl "180+1"]
[EndTime "9:19:12 PDT"]
[Termination "Uživatel machonza zvítězil na čas"]

1. d4 {[%clk 0:03:00.7]} 1... Nf6 {[%clk 0:02:58.8]} 2. Bg5 {[%clk 0:02:58.4]}
2... d5 {[%clk 0:02:56.8]} 3. Bxf6 {[%clk 0:02:57.2]} 3... exf6 {[%clk
0:02:55.8]} 4. e3 {[%clk 0:02:58.1]} 4... Bd6 {[%clk 0:02:53.8]} 5. c4 {[%clk
0:02:57.6]} 5... dxc4 {[%clk 0:02:53.1]} 6. Bxc4 {[%clk 0:02:55.9]} 6... f5
{[%clk 0:02:47.8]} 7. Nc3 {[%clk 0:02:54.4]} 7... Nd7 {[%clk 0:02:44.9]} 8. Nf3
{[%clk 0:02:53.5]} 8... O-O {[%clk 0:02:42.8]} 9. O-O {[%clk 0:02:53]} 9... Nf6
{[%clk 0:02:37.7]} 10. a3 {[%clk 0:02:51.9]} 10... Ne4 {[%clk 0:02:35.9]} 11.
Qc2 {[%clk 0:02:43.7]} 11... Re8 {[%clk 0:02:33.8]} 12. b4 {[%clk 0:02:38.2]}
12... c6 {[%clk 0:02:28.4]} 13. Qb3 {[%clk 0:02:35.7]} 13... Be6 {[%clk
0:02:23.8]} 14. Rfd1 {[%clk 0:02:23.2]} 14... Nxc3 {[%clk 0:02:04.6]} 15. Qxc3
{[%clk 0:02:21.7]} 15... Qe7 {[%clk 0:02:03.1]} 16. Qb3 {[%clk 0:02:18.2]} 16...
a6 {[%clk 0:01:59.8]} 17. Rac1 {[%clk 0:02:14.7]} 17... Rad8 {[%clk 0:01:54.5]}
18. h3 {[%clk 0:02:11.9]} 18... Bb8 {[%clk 0:01:45.6]} 19. Bxe6 {[%clk
0:02:03.8]} 19... fxe6 {[%clk 0:01:43.6]} 20. Rc5 {[%clk 0:02:01.5]} 20... Rd5
{[%clk 0:01:42.6]} 21. Rdc1 {[%clk 0:01:56.2]} 21... Bd6 {[%clk 0:01:32.8]} 22.
R5c3 {[%clk 0:01:51.2]} 22... h6 {[%clk 0:01:30]} 23. Nd2 {[%clk 0:01:48.1]}
23... Kh7 {[%clk 0:01:26]} 24. Nc4 {[%clk 0:01:45.4]} 24... Bc7 {[%clk
0:01:23.2]} 25. Qc2 {[%clk 0:01:41.6]} 25... g6 {[%clk 0:01:22]} 26. g3 {[%clk
0:01:39.3]} 26... e5 {[%clk 0:01:21.1]} 27. dxe5 {[%clk 0:01:34.7]} 27... Bxe5
{[%clk 0:01:20.9]} 28. Rd3 {[%clk 0:01:34.1]} 28... Red8 {[%clk 0:01:18.3]} 29.
Rcd1 {[%clk 0:01:33.1]} 29... Rxd3 {[%clk 0:01:16.7]} 30. Rxd3 {[%clk 0:01:32]}
30... Bc7 {[%clk 0:01:11.2]} 31. Qd2 {[%clk 0:01:25.6]} 31... Kg7 {[%clk
0:01:08.8]} 32. Rxd8 {[%clk 0:01:14.9]} 32... Qxd8 {[%clk 0:01:07.1]} 33. Qxd8
{[%clk 0:01:13]} 33... Bxd8 {[%clk 0:01:06.6]} 34. Kf1 {[%clk 0:01:12.8]} 34...
Bc7 {[%clk 0:01:03.6]} 35. Ke2 {[%clk 0:01:12.5]} 35... Kf6 {[%clk 0:01:03.6]}
36. Kd3 {[%clk 0:01:12.2]} 36... Ke6 {[%clk 0:01:02.5]} 37. Kd4 {[%clk 0:01:11]}
37... Bd8 {[%clk 0:01:01.2]} 38. Kc5 {[%clk 0:01:09.8]} 38... Bc7 {[%clk
0:00:57]} 39. Nb2 {[%clk 0:01:05.7]} 39... Kd7 {[%clk 0:00:53.9]} 40. Nc4 {[%clk
0:01:02.9]} 40... Ke6 {[%clk 0:00:51.4]} 41. h4 {[%clk 0:01:02.4]} 41... Kd7
{[%clk 0:00:43.9]} 42. Kd4 {[%clk 0:01:00.7]} 42... Ke6 {[%clk 0:00:43.5]} 43.
f4 {[%clk 0:00:57.5]} 43... h5 {[%clk 0:00:33.6]} 44. e4 {[%clk 0:00:56.9]}
44... fxe4 {[%clk 0:00:25.4]} 45. Kxe4 {[%clk 0:00:57.8]} 45... Bb8 {[%clk
0:00:22.8]} 46. Nd2 {[%clk 0:00:41.4]} 46... Bd6 {[%clk 0:00:21]} 47. Nf3 {[%clk
0:00:39.9]} 47... c5 {[%clk 0:00:19.8]} 48. Ng5+ {[%clk 0:00:37]} 48... Kf6
{[%clk 0:00:19.5]} 49. Kd5 {[%clk 0:00:35.9]} 49... cxb4 {[%clk 0:00:19.4]} 50.
Ne4+ {[%clk 0:00:34.5]} 50... Kf5 {[%clk 0:00:18.6]} 51. Nxd6+ {[%clk
0:00:33.3]} 51... Kg4 {[%clk 0:00:18.6]} 52. axb4 {[%clk 0:00:32.1]} 52... Kxg3
{[%clk 0:00:17.4]} 53. Ke4 {[%clk 0:00:27.8]} 53... b6 {[%clk 0:00:15.5]} 54.
Nc4 {[%clk 0:00:25.6]} 54... a5 {[%clk 0:00:15.2]} 55. b5 {[%clk 0:00:23.1]}
55... a4 {[%clk 0:00:15.1]} 56. Na3 {[%clk 0:00:19.4]} 56... Kxh4 {[%clk
0:00:13.2]} 57. Kf3 {[%clk 0:00:19]} 57... g5 {[%clk 0:00:11.8]} 58. f5 {[%clk
0:00:16.3]} 58... g4+ {[%clk 0:00:11.1]} 59. Kf4 {[%clk 0:00:15]} 59... g3
{[%clk 0:00:11]} 60. Kf3 {[%clk 0:00:11.4]} 60... g2 {[%clk 0:00:10.2]} 61. Kxg2
{[%clk 0:00:10.5]} 61... Kg5 {[%clk 0:00:11.1]} 62. Kf3 {[%clk 0:00:08.3]} 62...
Kxf5 {[%clk 0:00:11.5]} 63. Nc4 {[%clk 0:00:07.8]} 63... h4 {[%clk 0:00:11.5]}
64. Nxb6 {[%clk 0:00:04.4]} 64... a3 {[%clk 0:00:11.4]} 65. Nd5 {[%clk
0:00:03.9]} 65... a2 {[%clk 0:00:11]} 66. Ne3+ {[%clk 0:00:03.4]} 66... Ke5
{[%clk 0:00:11.1]} 67. Nc2 {[%clk 0:00:03.4]} 67... Kd6 {[%clk 0:00:10.4]} 68.
Kg4 {[%clk 0:00:01.4]} 68... Kc5 {[%clk 0:00:10.4]} 69. Kxh4 {[%clk 0:00:01.9]}
69... Kxb5 {[%clk 0:00:11]} 70. Kg3 {[%clk 0:00:02.2]} 70... Kc4 {[%clk
0:00:11.6]} 71. Kf2 {[%clk 0:00:02]} 71... Kb3 {[%clk 0:00:12.2]} 72. Nd4+
{[%clk 0:00:01]} 72... Kb2 {[%clk 0:00:12.4]} 0-1

[Event "Betsys MČR v online bleskovém šachu 2021"]
[Site "Chess.com"]
[Date "2021.04.17"]
[Round "2"]
[White "TommyLud"]
[Black "mendryxchess"]
[Result "1-0"]
[WhiteElo "2139"]
[BlackElo "1736"]
[TimeControl "180+1"]
[EndTime "9:19:12 PDT"]
[Termination "Uživatel TommyLud zvítězil po vzdání soupeře"]

1. d4 {[%clk 0:03:00.9]} 1... Nf6 {[%clk 0:02:59.9]} 2. c4 {[%clk 0:03:01.1]}
2... e6 {[%clk 0:02:59.8]} 3. Nf3 {[%clk 0:03:00.6]} 3... Bb4+ {[%clk
0:02:59.7]} 4. Nbd2 {[%clk 0:03:00.3]} 4... O-O {[%clk 0:02:56.5]} 5. a3 {[%clk
0:02:59.7]} 5... Bxd2+ {[%clk 0:02:56.3]} 6. Qxd2 {[%clk 0:02:59.7]} 6... d6
{[%clk 0:02:56.3]} 7. e3 {[%clk 0:02:58.5]} 7... Nc6 {[%clk 0:02:56.5]} 8. b4
{[%clk 0:02:43.9]} 8... Qe7 {[%clk 0:02:49.3]} 9. Be2 {[%clk 0:02:41.6]} 9... e5
{[%clk 0:02:47.3]} 10. d5 {[%clk 0:02:41.3]} 10... Nb8 {[%clk 0:02:47.4]} 11.
Bb2 {[%clk 0:02:39.6]} 11... Bf5 {[%clk 0:02:45.7]} 12. O-O {[%clk 0:02:36.1]}
12... Ne4 {[%clk 0:02:37.6]} 13. Qd1 {[%clk 0:02:31.8]} 13... Nd7 {[%clk
0:02:36.5]} 14. Rc1 {[%clk 0:02:29.9]} 14... Bg6 {[%clk 0:02:29.2]} 15. Nd2
{[%clk 0:02:20.3]} 15... Nxd2 {[%clk 0:02:22.6]} 16. Qxd2 {[%clk 0:02:20.4]}
16... f5 {[%clk 0:02:22.9]} 17. c5 {[%clk 0:02:04.7]} 17... dxc5 {[%clk
0:02:17.3]} 18. bxc5 {[%clk 0:02:03.9]} 18... Nxc5 {[%clk 0:02:12.7]} 19. Qc3
{[%clk 0:01:40.6]} 19... Ne4 {[%clk 0:01:48.9]} 20. Qxe5 {[%clk 0:01:39.1]}
20... Qxe5 {[%clk 0:01:48.4]} 21. Bxe5 {[%clk 0:01:40]} 21... c6 {[%clk
0:01:42.5]} 22. dxc6 {[%clk 0:01:38.7]} 22... bxc6 {[%clk 0:01:43.4]} 23. Rxc6
{[%clk 0:01:38.4]} 23... Rfd8 {[%clk 0:01:37.5]} 24. Bc4+ {[%clk 0:01:19.8]}
24... Bf7 {[%clk 0:01:34.8]} 25. Bxf7+ {[%clk 0:01:18.6]} 25... Kxf7 {[%clk
0:01:35.7]} 26. Rc7+ {[%clk 0:01:18.8]} 26... Ke6 {[%clk 0:01:35.9]} 27. Bxg7
{[%clk 0:01:18.5]} 27... Rg8 {[%clk 0:01:29.4]} 28. Bd4 {[%clk 0:01:16.8]} 28...
Kd6 {[%clk 0:01:23.9]} 29. Rfc1 {[%clk 0:01:15.4]} 29... Rg6 {[%clk 0:01:18.9]}
30. f3 {[%clk 0:01:04.1]} 30... Nd2 {[%clk 0:01:11.9]} 31. R1c6+ {[%clk
0:00:45.1]} 31... Kd5 {[%clk 0:01:10.5]} 32. Rc5+ {[%clk 0:00:41.9]} 32... Kd6
{[%clk 0:01:09.3]} 33. Be5+ {[%clk 0:00:27.3]} 33... Ke6 {[%clk 0:01:08.5]} 34.
R7c6+ {[%clk 0:00:26.7]} 34... Ke7 {[%clk 0:01:00.7]} 35. Kf2 {[%clk 0:00:26.2]}
35... Nb3 {[%clk 0:00:48.8]} 36. Rb5 {[%clk 0:00:22.1]} 36... Rxc6 {[%clk
0:00:46.4]} 37. Rxb3 {[%clk 0:00:22.1]} 37... Ke6 {[%clk 0:00:44]} 38. Bd4
{[%clk 0:00:16.1]} 38... a6 {[%clk 0:00:37.8]} 39. Rb2 {[%clk 0:00:16]} 39...
Rac8 {[%clk 0:00:36.6]} 40. Kg3 {[%clk 0:00:12.6]} 40... Kd5 {[%clk 0:00:33.7]}
41. Kf4 {[%clk 0:00:12.6]} 41... Ke6 {[%clk 0:00:31.7]} 42. h3 {[%clk
0:00:12.2]} 42... Rc2 {[%clk 0:00:29.7]} 43. Rxc2 {[%clk 0:00:11.6]} 43... Rxc2
{[%clk 0:00:30.6]} 44. g4 {[%clk 0:00:12.3]} 44... fxg4 {[%clk 0:00:29.1]} 45.
hxg4 {[%clk 0:00:12.9]} 45... Ra2 {[%clk 0:00:28.1]} 46. Bc5 {[%clk 0:00:12.6]}
46... Kf7 {[%clk 0:00:27.1]} 47. e4 {[%clk 0:00:12.4]} 47... Ra1 {[%clk
0:00:25]} 48. Kf5 {[%clk 0:00:12.4]} 48... Rf1 {[%clk 0:00:24.5]} 49. f4 {[%clk
0:00:12.7]} 49... h6 {[%clk 0:00:23.8]} 50. e5 {[%clk 0:00:12.6]} 50... Rf3
{[%clk 0:00:21.9]} 51. e6+ {[%clk 0:00:12.3]} 51... Ke8 {[%clk 0:00:20.4]} 52.
Ke5 {[%clk 0:00:12.4]} 52... Rf1 {[%clk 0:00:17]} 53. f5 {[%clk 0:00:12.5]}
53... Re1+ {[%clk 0:00:16.4]} 54. Kf6 {[%clk 0:00:11.3]} 54... Re4 {[%clk
0:00:16]} 55. g5 {[%clk 0:00:10.7]} 55... hxg5 {[%clk 0:00:14.8]} 56. Kxg5
{[%clk 0:00:10.9]} 56... Re5 {[%clk 0:00:15.2]} 57. Bb4 {[%clk 0:00:09.5]} 57...
a5 {[%clk 0:00:14.4]} 58. Bd6 {[%clk 0:00:09.5]} 58... Rd5 {[%clk 0:00:14.4]}
59. Bc7 {[%clk 0:00:05.7]} 59... a4 {[%clk 0:00:13.6]} 60. Kg6 {[%clk
0:00:04.4]} 60... Rd3 {[%clk 0:00:11.4]} 61. f6 {[%clk 0:00:04.5]} 61... Rxa3
{[%clk 0:00:08.5]} 62. f7+ {[%clk 0:00:04.2]} 62... Ke7 {[%clk 0:00:07.1]} 63.
f8=Q+ {[%clk 0:00:03.7]} 63... Kxf8 {[%clk 0:00:06.7]} 64. Bd6+ {[%clk
0:00:04.4]} 64... Ke8 {[%clk 0:00:07.6]} 65. Bxa3 {[%clk 0:00:05]} 65... Kd8
{[%clk 0:00:07.8]} 66. e7+ {[%clk 0:00:04.7]} 66... Ke8 {[%clk 0:00:07.3]} 67.
Kf6 {[%clk 0:00:05.1]} 67... Kd7 {[%clk 0:00:07.2]} 68. Kf7 {[%clk 0:00:05.7]}
68... Kc6 {[%clk 0:00:06.8]} 69. e8=Q+ {[%clk 0:00:05.8]} 69... Kd5 {[%clk
0:00:06.7]} 70. Qe6+ {[%clk 0:00:05.8]} 70... Kd4 {[%clk 0:00:06]} 71. Qc6
{[%clk 0:00:05.9]} 71... Kd3 {[%clk 0:00:05.5]} 72. Qxa4 {[%clk 0:00:06]} 1-0

[Event "Betsys MČR v online bleskovém šachu 2021"]
[Site "Chess.com"]
[Date "2021.04.17"]
[Round "2"]
[White "Eliska0107"]
[Black "MatejKopecky13"]
[Result "1-0"]
[WhiteElo "2018"]
[BlackElo "1464"]
[TimeControl "180+1"]
[EndTime "9:19:12 PDT"]
[Termination "Uživatel Eliska0107 zvítězil matem"]

1. e4 {[%clk 0:02:58.2]} 1... e6 {[%clk 0:02:54.7]} 2. d4 {[%clk 0:02:57.6]}
2... d5 {[%clk 0:02:54.4]} 3. Nd2 {[%clk 0:02:58.1]} 3... dxe4 {[%clk
0:02:53.4]} 4. Nxe4 {[%clk 0:02:57.6]} 4... Nd7 {[%clk 0:02:53.6]} 5. Nf3 {[%clk
0:02:56.9]} 5... Ngf6 {[%clk 0:02:52.7]} 6. Nc3 {[%clk 0:02:55.6]} 6... Be7
{[%clk 0:02:46.6]} 7. Bc4 {[%clk 0:02:53.6]} 7... Nb6 {[%clk 0:02:45.5]} 8. Bb3
{[%clk 0:02:53.7]} 8... Bd7 {[%clk 0:02:44.1]} 9. O-O {[%clk 0:02:53.4]} 9...
Nbd5 {[%clk 0:02:35]} 10. Ne5 {[%clk 0:02:52.2]} 10... c6 {[%clk 0:02:33.7]} 11.
f4 {[%clk 0:02:42.2]} 11... h6 {[%clk 0:02:11.8]} 12. Qf3 {[%clk 0:02:40.4]}
12... Rc8 {[%clk 0:02:00]} 13. Bd2 {[%clk 0:02:38.7]} 13... Nxc3 {[%clk
0:01:46.1]} 14. bxc3 {[%clk 0:02:37.7]} 14... Nd5 {[%clk 0:01:46.5]} 15. c4
{[%clk 0:02:33.5]} 15... Nf6 {[%clk 0:01:44.8]} 16. Rae1 {[%clk 0:02:25.5]}
16... c5 {[%clk 0:01:44.4]} 17. c3 {[%clk 0:02:10.8]} 17... cxd4 {[%clk
0:01:37.6]} 18. cxd4 {[%clk 0:02:10.3]} 18... Bc6 {[%clk 0:01:31.1]} 19. d5
{[%clk 0:01:58.5]} 19... exd5 {[%clk 0:01:22.1]} 20. cxd5 {[%clk 0:01:52.6]}
20... Bxd5 {[%clk 0:01:09.6]} 21. Bxd5 {[%clk 0:01:41.1]} 21... Qxd5 {[%clk
0:01:07.2]} 22. Qxd5 {[%clk 0:01:30.1]} 22... Nxd5 {[%clk 0:01:06.9]} 23. Nd3
{[%clk 0:01:25]} 23... O-O {[%clk 0:01:02]} 24. Re5 {[%clk 0:01:21.2]} 24...
Rfd8 {[%clk 0:00:58.4]} 25. Rf3 {[%clk 0:01:07.8]} 25... Bf6 {[%clk 0:00:58]}
26. Re2 {[%clk 0:01:03.1]} 26... Rc2 {[%clk 0:00:51.3]} 27. Kf1 {[%clk
0:01:00.5]} 27... Bc3 {[%clk 0:00:43.8]} 28. Bxc3 {[%clk 0:00:54.4]} 28... Rxe2
{[%clk 0:00:41.6]} 29. Kxe2 {[%clk 0:00:50.8]} 29... Nxc3+ {[%clk 0:00:41.3]}
30. Ke3 {[%clk 0:00:45.7]} 30... Nxa2 {[%clk 0:00:31.2]} 31. Rf2 {[%clk
0:00:40.2]} 31... Nc3 {[%clk 0:00:29.3]} 32. Rc2 {[%clk 0:00:36.6]} 32... Nd5+
{[%clk 0:00:27.6]} 33. Ke4 {[%clk 0:00:34.5]} 33... Nf6+ {[%clk 0:00:27.3]} 34.
Ke3 {[%clk 0:00:33.7]} 34... Re8+ {[%clk 0:00:26.4]} 35. Kf3 {[%clk 0:00:30.7]}
35... Nd5 {[%clk 0:00:22.9]} 36. Ne5 {[%clk 0:00:25.2]} 36... f6 {[%clk
0:00:22.3]} 37. Nc4 {[%clk 0:00:21.6]} 37... b5 {[%clk 0:00:20.4]} 38. Nd6
{[%clk 0:00:21.3]} 38... Re6 {[%clk 0:00:19.8]} 39. Nf5 {[%clk 0:00:20.1]} 39...
g6 {[%clk 0:00:18.9]} 40. Nxh6+ {[%clk 0:00:19.6]} 40... Kg7 {[%clk 0:00:19.2]}
41. Ng4 {[%clk 0:00:19.6]} 41... f5 {[%clk 0:00:18.7]} 42. Ne5 {[%clk
0:00:19.7]} 42... b4 {[%clk 0:00:18.4]} 43. Rc5 {[%clk 0:00:18.9]} 43... Nf6
{[%clk 0:00:16.5]} 44. Rb5 {[%clk 0:00:18.5]} 44... Rc6 {[%clk 0:00:15.4]} 45.
Rxb4 {[%clk 0:00:18.2]} 45... Rc3+ {[%clk 0:00:14.8]} 46. Ke2 {[%clk 0:00:17.6]}
46... Ne4 {[%clk 0:00:15]} 47. Rb7+ {[%clk 0:00:16.7]} 47... Kh6 {[%clk
0:00:14.7]} 48. g3 {[%clk 0:00:15.9]} 48... Rc2+ {[%clk 0:00:14.1]} 49. Kd3
{[%clk 0:00:15.6]} 49... Rd2+ {[%clk 0:00:14.3]} 50. Kc4 {[%clk 0:00:15.1]}
50... Nd6+ {[%clk 0:00:14.1]} 51. Kc3 {[%clk 0:00:14.3]} 51... Rd1 {[%clk
0:00:14.2]} 52. Rxa7 {[%clk 0:00:14.1]} 52... Rh1 {[%clk 0:00:12.5]} 53. Ra6
{[%clk 0:00:13.5]} 53... Ne4+ {[%clk 0:00:12]} 54. Kd4 {[%clk 0:00:12.6]} 54...
Rxh2 {[%clk 0:00:12.5]} 55. Rxg6+ {[%clk 0:00:11.5]} 55... Kh7 {[%clk 0:00:10]}
56. Ra6 {[%clk 0:00:10.7]} 56... Rd2+ {[%clk 0:00:10.3]} 57. Ke3 {[%clk
0:00:10.3]} 57... Rb2 {[%clk 0:00:08.9]} 58. Nf3 {[%clk 0:00:09.9]} 58... Rb3+
{[%clk 0:00:08.5]} 59. Ke2 {[%clk 0:00:10]} 59... Rb2+ {[%clk 0:00:08.6]} 60.
Ke3 {[%clk 0:00:10.1]} 60... Rb3+ {[%clk 0:00:08.8]} 61. Ke2 {[%clk 0:00:10.4]}
61... Nxg3+ {[%clk 0:00:09]} 62. Kf2 {[%clk 0:00:10.5]} 62... Ne4+ {[%clk
0:00:09.4]} 63. Kg2 {[%clk 0:00:10.8]} 63... Rb2+ {[%clk 0:00:09.4]} 64. Kh3
{[%clk 0:00:10.8]} 64... Rb1 {[%clk 0:00:09.7]} 65. Ng5+ {[%clk 0:00:10.5]}
65... Nxg5+ {[%clk 0:00:08.9]} 66. fxg5 {[%clk 0:00:10.8]} 66... Rb3+ {[%clk
0:00:09.6]} 67. Kh4 {[%clk 0:00:10.9]} 67... Rb1 {[%clk 0:00:10]} 68. Kg3 {[%clk
0:00:11.1]} 68... Rb3+ {[%clk 0:00:09.6]} 69. Kf4 {[%clk 0:00:11.2]} 69... Rb5
{[%clk 0:00:08.1]} 70. g6+ {[%clk 0:00:10.7]} 70... Kg7 {[%clk 0:00:08.6]} 71.
Kg5 {[%clk 0:00:11]} 71... Rc5 {[%clk 0:00:07.2]} 72. Ra7+ {[%clk 0:00:10.8]}
72... Kg8 {[%clk 0:00:07.5]} 73. Kh6 {[%clk 0:00:10.9]} 73... Rc6 {[%clk
0:00:07.9]} 74. Ra8+ {[%clk 0:00:10.8]} 74... Rc8 {[%clk 0:00:05.2]} 75. Rxc8#
{[%clk 0:00:10.9]} 1-0

[Event "Betsys MČR v online bleskovém šachu 2021"]
[Site "Chess.com"]
[Date "2021.04.17"]
[Round "2"]
[White "RousekJan"]
[Black "Marcus_Aurelius_CZ"]
[Result "1/2-1/2"]
[WhiteElo "1789"]
[BlackElo "1374"]
[TimeControl "180+1"]
[EndTime "9:19:43 PDT"]
[Termination "Remíza patem"]

1. e4 {[%clk 0:03:00.9]} 1... e6 {[%clk 0:02:59.8]} 2. d4 {[%clk 0:02:57]} 2...
d5 {[%clk 0:03:00.2]} 3. Nd2 {[%clk 0:02:56.1]} 3... dxe4 {[%clk 0:02:58.9]} 4.
Nxe4 {[%clk 0:02:55.8]} 4... Nf6 {[%clk 0:02:57.9]} 5. Bg5 {[%clk 0:02:37.9]}
5... Be7 {[%clk 0:02:56.8]} 6. Nxf6+ {[%clk 0:02:34.9]} 6... Bxf6 {[%clk
0:02:56.2]} 7. Bxf6 {[%clk 0:02:35.1]} 7... Qxf6 {[%clk 0:02:55.4]} 8. Nf3
{[%clk 0:02:35.7]} 8... Nc6 {[%clk 0:02:55.1]} 9. c3 {[%clk 0:02:35]} 9... O-O
{[%clk 0:02:54.2]} 10. Be2 {[%clk 0:02:34.6]} 10... e5 {[%clk 0:02:54.3]} 11.
dxe5 {[%clk 0:02:27.9]} 11... Nxe5 {[%clk 0:02:53.5]} 12. O-O {[%clk 0:02:21.6]}
12... Nxf3+ {[%clk 0:02:50.5]} 13. Bxf3 {[%clk 0:02:22.5]} 13... Rb8 {[%clk
0:02:46.4]} 14. Re1 {[%clk 0:02:14.6]} 14... b6 {[%clk 0:02:43.9]} 15. Re3
{[%clk 0:02:10.3]} 15... Bf5 {[%clk 0:02:39.6]} 16. Qe2 {[%clk 0:02:05.9]} 16...
Rbd8 {[%clk 0:02:35.2]} 17. Re1 {[%clk 0:02:04.3]} 17... h6 {[%clk 0:02:30.4]}
18. Be4 {[%clk 0:02:00.6]} 18... Rfe8 {[%clk 0:02:09.4]} 19. Bxf5 {[%clk
0:01:16.5]} 19... Rxe3 {[%clk 0:02:07.7]} 20. Qxe3 {[%clk 0:01:17.4]} 20... Qxf5
{[%clk 0:02:07.5]} 21. h3 {[%clk 0:01:08.3]} 21... Qd7 {[%clk 0:02:06]} 22. Kh2
{[%clk 0:01:05.4]} 22... Qd6+ {[%clk 0:02:04.9]} 23. g3 {[%clk 0:01:04.7]} 23...
Kf8 {[%clk 0:02:05.1]} 24. Re2 {[%clk 0:01:04.5]} 24... Qd7 {[%clk 0:01:46.1]}
25. Qe4 {[%clk 0:00:54.5]} 25... Re8 {[%clk 0:01:38.7]} 26. Qf3 {[%clk
0:00:49.2]} 26... Rxe2 {[%clk 0:01:35.9]} 27. Qxe2 {[%clk 0:00:50.1]} 27... Qe7
{[%clk 0:01:35.4]} 28. Qd2 {[%clk 0:00:47.5]} 28... Qe6 {[%clk 0:01:33.2]} 29.
Qd8+ {[%clk 0:00:46.1]} 29... Qe8 {[%clk 0:01:31.7]} 30. Qxc7 {[%clk 0:00:45.9]}
30... Qe7 {[%clk 0:01:31.8]} 31. Qb8+ {[%clk 0:00:35.4]} 31... Qe8 {[%clk
0:01:30]} 32. Qxa7 {[%clk 0:00:34.1]} 32... b5 {[%clk 0:01:29.8]} 33. Qc5+
{[%clk 0:00:33.3]} 33... Kg8 {[%clk 0:01:29]} 34. Qe3 {[%clk 0:00:28.5]} 34...
Qd7 {[%clk 0:01:26.3]} 35. b3 {[%clk 0:00:26.1]} 35... Kh7 {[%clk 0:01:22.6]}
36. c4 {[%clk 0:00:22.5]} 36... bxc4 {[%clk 0:01:20.2]} 37. bxc4 {[%clk
0:00:23.4]} 37... Qc6 {[%clk 0:01:19.2]} 38. c5 {[%clk 0:00:21]} 38... Kg8
{[%clk 0:01:16]} 39. Qd4 {[%clk 0:00:19.4]} 39... g6 {[%clk 0:01:11.5]} 40. Qd8+
{[%clk 0:00:18.4]} 40... Kg7 {[%clk 0:01:11.2]} 41. Qd6 {[%clk 0:00:19.3]} 41...
Qa4 {[%clk 0:00:40.3]} 42. c6 {[%clk 0:00:15.3]} 42... Qa7 {[%clk 0:00:39.9]}
43. Qe5+ {[%clk 0:00:10.9]} 43... f6 {[%clk 0:00:35.6]} 44. Qe3 {[%clk
0:00:09.3]} 44... Qc7 {[%clk 0:00:35.4]} 45. Qe6 {[%clk 0:00:05.1]} 45... Qb6
{[%clk 0:00:25.6]} 46. Qd7+ {[%clk 0:00:05.2]} 46... Kg8 {[%clk 0:00:24.5]} 47.
Qe8+ {[%clk 0:00:05.6]} 47... Kh7 {[%clk 0:00:23.8]} 48. Qd7+ {[%clk 0:00:06]}
48... Kg8 {[%clk 0:00:23.3]} 49. Qe8+ {[%clk 0:00:06.3]} 49... Kh7 {[%clk
0:00:23.2]} 50. Qe3 {[%clk 0:00:07.2]} 50... Qxc6 {[%clk 0:00:21.6]} 51. a3
{[%clk 0:00:07.6]} 51... Kg7 {[%clk 0:00:20.2]} 52. Qb3 {[%clk 0:00:06.7]} 52...
Qc7 {[%clk 0:00:17.5]} 53. a4 {[%clk 0:00:06.6]} 53... Qa7 {[%clk 0:00:17.1]}
54. Qc2 {[%clk 0:00:04.4]} 54... Kf7 {[%clk 0:00:15.3]} 55. Kg2 {[%clk
0:00:02.6]} 55... Qb7+ {[%clk 0:00:13]} 56. f3 {[%clk 0:00:03]} 56... Qa7 {[%clk
0:00:12.5]} 57. g4 {[%clk 0:00:03]} 57... g5 {[%clk 0:00:11.9]} 58. Qc4+ {[%clk
0:00:03.4]} 58... Kg6 {[%clk 0:00:11.5]} 59. Qb5 {[%clk 0:00:03.8]} 59... Qe7
{[%clk 0:00:04.9]} 60. Qf5+ {[%clk 0:00:03.6]} 60... Kg7 {[%clk 0:00:04.3]} 61.
Kf2 {[%clk 0:00:02.8]} 61... Qa7+ {[%clk 0:00:02.7]} 62. Kg3 {[%clk 0:00:02.6]}
62... Qxa4 {[%clk 0:00:02.5]} 63. Qe4 {[%clk 0:00:02.5]} 63... Qxe4 {[%clk
0:00:02]} 64. fxe4 {[%clk 0:00:02.9]} 64... Kf7 {[%clk 0:00:02.6]} 65. Kf3
{[%clk 0:00:03.7]} 65... Ke7 {[%clk 0:00:03.1]} 66. Ke3 {[%clk 0:00:04.3]} 66...
Kd7 {[%clk 0:00:03.2]} 67. Kd4 {[%clk 0:00:04.8]} 67... Kd6 {[%clk 0:00:03.7]}
68. Ke3 {[%clk 0:00:05.1]} 68... Ke5 {[%clk 0:00:04.1]} 69. Kf3 {[%clk
0:00:05.1]} 69... Kd4 {[%clk 0:00:04.4]} 70. Kg3 {[%clk 0:00:03.3]} 70... Kxe4
{[%clk 0:00:04.3]} 71. h4 {[%clk 0:00:03.8]} 71... Ke3 {[%clk 0:00:03]} 72. h5
{[%clk 0:00:03.9]} 72... Ke4 {[%clk 0:00:02.1]} 73. Kg2 {[%clk 0:00:04]} 73...
Kf4 {[%clk 0:00:02.6]} 74. Kh3 {[%clk 0:00:04.5]} 74... Kf3 {[%clk 0:00:03.2]}
75. Kh2 {[%clk 0:00:05.1]} 75... Kxg4 {[%clk 0:00:03.8]} 76. Kg2 {[%clk
0:00:06]} 76... Kxh5 {[%clk 0:00:04.5]} 77. Kh3 {[%clk 0:00:06.9]} 77... Kg6
{[%clk 0:00:05.2]} 78. Kg3 {[%clk 0:00:07.8]} 78... h5 {[%clk 0:00:05.7]} 79.
Kf3 {[%clk 0:00:08.2]} 79... h4 {[%clk 0:00:05.8]} 80. Kg4 {[%clk 0:00:08.4]}
80... f5+ {[%clk 0:00:06.4]} 81. Kh3 {[%clk 0:00:08.8]} 81... Kh5 {[%clk
0:00:06.7]} 82. Kg2 {[%clk 0:00:09.7]} 82... g4 {[%clk 0:00:07]} 83. Kh2 {[%clk
0:00:10.2]} 83... Kg5 {[%clk 0:00:07]} 84. Kg2 {[%clk 0:00:11.1]} 84... f4
{[%clk 0:00:07.4]} 85. Kf2 {[%clk 0:00:12]} 85... h3 {[%clk 0:00:07.7]} 86. Kg1
{[%clk 0:00:11.9]} 86... Kh4 {[%clk 0:00:08.2]} 87. Kh2 {[%clk 0:00:12.8]} 87...
g3+ {[%clk 0:00:08.7]} 88. Kg1 {[%clk 0:00:13.7]} 88... Kg4 {[%clk 0:00:09.1]}
89. Kf1 {[%clk 0:00:14]} 89... f3 {[%clk 0:00:09.7]} 90. Kg1 {[%clk 0:00:14.2]}
90... h2+ {[%clk 0:00:10]} 91. Kh1 {[%clk 0:00:14.3]} 91... Kh3 {[%clk
0:00:10.5]} 1/2-1/2

[Event "Betsys MČR v online bleskovém šachu 2021"]
[Site "Chess.com"]
[Date "2021.04.17"]
[Round "3"]
[White "alenka777"]
[Black "Figo5144"]
[Result "1-0"]
[WhiteElo "1277"]
[BlackElo "569"]
[TimeControl "180+1"]
[EndTime "9:21:53 PDT"]
[Termination "Uživatel alenka777 zvítězil matem"]

1. e4 {[%clk 0:03:00.9]} 1... d5 {[%clk 0:02:59.8]} 2. Nc3 {[%clk 0:03:00.1]}
2... d4 {[%clk 0:02:59.1]} 3. Nce2 {[%clk 0:02:59]} 3... Nc6 {[%clk 0:02:57.6]}
4. Nf3 {[%clk 0:02:57.2]} 4... Nf6 {[%clk 0:02:54.4]} 5. e5 {[%clk 0:02:51.3]}
5... Ng4 {[%clk 0:02:46.2]} 6. Nfxd4 {[%clk 0:02:44]} 6... Ngxe5 {[%clk
0:02:43.8]} 7. Nxc6 {[%clk 0:02:43.1]} 7... bxc6 {[%clk 0:02:42.8]} 8. d4 {[%clk
0:02:42.5]} 8... Ng6 {[%clk 0:02:40.1]} 9. g3 {[%clk 0:02:42.3]} 9... Bg4 {[%clk
0:02:37.1]} 10. Bg2 {[%clk 0:02:41.5]} 10... Bxe2 {[%clk 0:02:32.3]} 11. Qxe2
{[%clk 0:02:40.5]} 11... Qxd4 {[%clk 0:02:32.2]} 12. O-O {[%clk 0:02:40.3]}
12... O-O-O {[%clk 0:02:29.6]} 13. Bxc6 {[%clk 0:02:35.1]} 13... e6 {[%clk
0:02:19.3]} 14. Qa6+ {[%clk 0:02:34.4]} 14... Kb8 {[%clk 0:02:11.3]} 15. Qb7#
{[%clk 0:02:34.1]} 1-0